Cogmind - Beta 15 @@@ ROGUE MODE // 2025.05.25 @ 07:39:19 Player: puppuppit Result: Destroyed by Striker with Plasma Lance Performance ------------- Evolutions (6) 3000 Regions Visited (11) 2200 Robots Destroyed (119) 595 Value Destroyed (4966) 4966 Prototype IDs (49) 980 Alien Tech Used (0) 0 Bonus (4653) 4653 TOTAL SCORE: 16394 Bonus ------- Follower Combat Kills 254 Registered with UFD 300 Met Optimus in HQ 500 Met Warlord at Base 500 MAIN.C Attacked Warlord 500 Warlord Defense Kills 3752 Friendly Fire -1153 Cogmind --------- Core Integrity 0/1150 Matter 300/300 Energy 38/100 System Corruption 31% Temperature Cool (0) Movement Hovering (51) Location -4/Factory Parts ------- > --- POWER (2) -------- (None) > --- PROPULSION (6) --- Antigrav System Cooled Antigrav System > --- UTILITY (7) ------ Quantum Shading Machine Advanced Signal Interpreter Advanced Targeting Computer Focal Shield Improved System Shield > --- WEAPON (4) ------- Autogun Great Axe Spear > --- INVENTORY (5) ---- Improved Weapon Cycler Enhanced Scrap Shield Advanced System Shield Matter Neutralizer Peak State ------------ > --- POWER ------------ Micro Fission Core Micro Antimatter Reactor > --- PROPULSION ------- Improved Diametric Drive Improved Diametric Drive Flightbrick > --- UTILITY ---------- Large Storage Unit Advanced Sensor Array Advanced Signal Interpreter Experimental Core Analyzer Experimental Core Analyzer Makeshift Hacking Suite Makeshift Hacking Suite Improved Hacking Suite Makeshift System Shield > --- WEAPON ----------- Vortex Shotgun Phasing Sabre Phasing Sabre Phasing Sabre > --- INVENTORY -------- Vortex Chain Reactor Cooled Antigrav System Experimental Cooling System Experimental Target Analyzer Enhanced Scrap Shield Ghost Barrier Vortex Shotgun Vortex Driver Vortex Driver Vortex Driver Molecular Deconstructor [Rating: 155] Favorites ----------- Power Light Ion Engine Engine Light Ion Engine Power Core Micro Fission Core Reactor Micro Antimatter Reactor Propulsion Wheel Leg Flexi-carbon Leg Wheel Wheel Hover Unit Cooled Antigrav System Flight Unit Flightbrick Utility Makeshift Hacking Suite Device Advanced Sensor Array Storage Large Storage Unit Processor Advanced Signal Interpreter Hackware Makeshift Hacking Suite Protection Improved Medium Armor Plating Weapon Phasing Sabre Energy Gun Vortex Shotgun Energy Cannon Vortex Driver Ballistic Gun Subdweller Machine Gun Ballistic Cannon Hardcell Cannon Launcher Rocket Launcher Special Weapon RU-N14's Throwing Claymores v3 Slashing Weapon Phasing Sabre Piercing Weapon Spear Build | -11 -10 -10 -7 -5 -5 -5 -5 -4 -4 -4 -4 ------- Run | Yrd Mat Sub Scr Fac Upp Upp War Pro Fac Was Fac Slots Evolved 12 | . . . . 10 . . . . 2 . . Power 1 | . . . . 1 . . . . . . . Propulsion 4 | . . . . 3 . . . . 1 . . Utility 5 | . . . . 4 . . . . 1 . . Weapon 2 | . . . . 2 . . . . . . . Parts Attached 131 | 9 3 9 6 15 2 2 30 1 7 1 46 Power 16 | 1 . 1 2 2 . . 5 . 1 . 4 Engine 9 | 1 . 1 2 2 . . 1 . 1 . 1 Core 3 | . . . . . . . 1 . . . 2 Reactor 4 | . . . . . . . 3 . . . 1 Propulsion 29 | 4 . 2 . 2 . 1 3 . 1 . 16 Treads . | . . . . . . . . . . . . Leg 9 | . . . . . . . 1 . . . 8 Wheel 6 | 4 . 2 . . . . . . . . . Hover 8 | . . . . . . . 1 . . . 7 Flight 6 | . . . . 2 . 1 1 . 1 . 1 Utility 44 | 2 2 3 2 9 2 . 5 1 3 1 14 Device 19 | 1 . 3 1 4 2 . 1 . . 1 6 Storage 2 | 1 1 . . . . . . . . . . Processor 7 | . . . . 2 . . 3 1 . . 1 Hackware 9 | . 1 . 1 3 . . . . 3 . 1 Protection 7 | . . . . . . . 1 . . . 6 Artifact . | . . . . . . . . . . . . Weapon 42 | 2 1 3 2 2 . 1 17 . 2 . 12 Energy Gun 4 | 1 1 . . . . . 2 . . . . Energy Cannon 12 | . . 3 . . . . 6 . . . 3 Ballistic Gun 9 | 1 . . 2 . . . . . . . 6 Ballistic Cannon 1 | . . . . . . . . . . . 1 Launcher 1 | . . . . 1 . . . . . . . Special Weapon 8 | . . . . . . . 6 . 2 . . Impact Weapon . | . . . . . . . . . . . . Slashing Weapon 4 | . . . . . . . 3 . . . 1 Piercing Weapon 3 | . . . . 1 . 1 . . . . 1 Special Melee Weapon . | . . . . . . . . . . . . Unidentified Prototypes 17 | . . . . 2 . . 11 1 1 . 2 Parts Lost 58 | . 1 3 4 2 1 . 1 . 1 . 45 Power 10 | . . . . 2 . . 1 . 1 . 6 Propulsion 18 | . 1 1 1 . . . . . . . 15 Utility 12 | . . . 1 . 1 . . . . . 10 Weapon 18 | . . 2 2 . . . . . . . 14 Highest Loss Streak 22 | . 1 1 3 2 1 . 1 . 1 . 22 To Critical Strikes . | . . . . . . . . . . . . Average Backups 9 | . 9 13 8 10 10 11 11 12 11 12 7 Power . | . . . . . . . . 1 1 1 . Propulsion 1 | . 2 4 1 . . . 1 2 1 1 1 Utility 4 | . 4 4 4 7 8 7 5 4 3 4 3 Weapon 3 | . 2 4 1 2 2 3 3 4 5 5 2 Tool/Special . | . . . . . . . . . . . . Unused Backups 28 | . . 5 7 1 3 . 7 . 1 . 4 Power . | . . . . . . . . . . . . Propulsion 4 | . . . 3 . . . 1 . . . . Utility 15 | . . 1 2 1 2 . 6 . . . 3 Weapon 8 | . . 4 2 . 1 . . . 1 . . Tool/Special 1 | . . . . . . . . . . . 1 Average Slot Usage (%) 83 | . 98 100 99 56 63 71 77 84 82 85 76 Engine 7 | . 14 14 14 8 10 10 7 . . 4 1 Core 1 | . . . . . . . . 5 2 . 2 Reactor 1 | . . . . . . . 1 5 3 4 3 Leg 2 | . . . . . . . . . . . 10 Wheel 8 | . 26 28 28 . . . . . . . . Hover 2 | . . . . . . . . . . . 9 Flight 5 | . . . . 6 10 10 10 10 13 14 2 Device 8 | . 12 12 12 5 14 15 8 5 4 4 5 Storage 7 | . 14 14 14 5 5 5 5 5 4 4 3 Processor 6 | . . . . 5 5 5 9 15 9 9 8 Hackware 10 | . 1 1 1 18 15 15 15 15 22 23 11 Energy Gun 2 | . 15 2 . 3 . . 1 5 3 4 . Energy Cannon 2 | . . 18 2 . . . 1 . . 3 2 Ballistic Gun 6 | . 12 7 25 . . . . . . . 4 Slashing Weapon 4 | . . . . . . . 7 15 13 9 4 Peak Build Rating 155 | 9 11 17 21 86 85 89 147 142 155 154 154 Average Rating 77 | 7 9 13 16 71 78 87 112 141 147 153 98 On Entrance 74 | . 9 11 16 16 86 79 89 140 142 149 154 Naked Turns . | . . . . . . . . . . . . Heaviest Build 102 | 12 28 45 45 28 28 31 82 55 55 65 102 Greatest Support 135 | 26 20 26 26 28 28 32 32 31 38 38 135 Greatest Overweight (x) 24 | . 2 2 2 1 . . 11 1 1 1 24 Average Overweight (x) . | . . 1 1 . . . . 1 1 1 . Largest Inventory Capacity 15 | 8 15 15 15 15 15 15 15 15 15 15 15 Average Capacity 14 | 7 14 15 15 15 15 15 15 15 15 15 11 Most Carried 15 | 3 15 15 15 15 15 15 15 15 15 15 15 Average Carried 12 | . 9 14 12 13 14 14 14 14 14 15 9 Final Capacity 15 | 8 15 15 15 15 15 15 15 15 15 15 5 Final Carried 15 | 3 15 15 15 15 15 15 15 15 15 15 5 Class Distribution -------------------- 41% | Hacker-Mutant 28% | Mutant 14% | Scavenger-Mutant 7% | Hacker-Skirmisher 5% | Wizard-Mutant Dominant Class ---------------- Mutant | -10/Materials Scavenger-Mutant | -10/Subcaves Mutant | -7/Scraptown Hacker-Mutant | -5/Factory Hacker-Mutant | -5/Upper Caves Hacker-Mutant | -5/Upper Caves Hacker-Mutant | -5/Warlord Hacker-Mutant | -4/Proximity Caves Hacker-Mutant | -4/Factory Wizard-Mutant | -4/Waste Hacker-Skirmisher | -4/Factory Resources | -11 -10 -10 -7 -5 -5 -5 -5 -4 -4 -4 -4 ----------- Run | Yrd Mat Sub Scr Fac Upp Upp War Pro Fac Was Fac Matter Collected 3888 | 372 400 216 334 44 319 83 550 30 125 45 1370 Remotely . | . . . . . . . . . . . . Salvage Created 5024 | 180 186 186 46 44 . . 742 247 290 926 2177 Parts 167 | 13 11 11 3 9 . . 22 6 17 1 74 Haulers Intercepted 3 | . . . . . . . . . . . 3 Recyclers Shooed 7 | . 1 . . . . . . . . . 6 Parts Field Recycled . | . . . . . . . . . . . . Retrieved Matter . | . . . . . . . . . . . . Parts Self-Destructed 18 | . . 12 . . . . . 6 . . . Prevented 1 | . . . . . 1 . . . . . . Kills | -11 -10 -10 -7 -5 -5 -5 -5 -4 -4 -4 -4 ------- Run | Yrd Mat Sub Scr Fac Upp Upp War Pro Fac Was Fac Combat Hostiles Destroyed 82 | . 3 4 1 1 . . 32 3 3 5 30 Melee 13 | . . . . . . . . 3 3 . 7 Guns 15 | . 3 1 1 . . . 1 . . 2 7 Cannons 22 | . . 3 . . . . 3 . . 3 13 AOE 31 | . . . . 1 . . 28 . . . 2 Classes Destroyed 22 | 3 3 2 1 1 . . 7 . . 1 4 Worker 9 | 2 . . . . . . . . 1 . 6 Builder 4 | . . . . 2 . . . . 1 . 1 Tunneler 5 | 4 1 . . . . . . . . . . Hauler 3 | . . . . . . . . . . . 3 Recycler 8 | 1 1 . . . . . . . . . 6 Mechanic 1 | . . . . . . . . . . . 1 Operator 2 | . 1 . . . . . . . 1 . . Watcher 1 | . . . . . . . . . . . 1 Swarmer 16 | . 1 . . 1 . . 5 . . . 9 Saboteur 3 | . . . . . . . 3 . . . . Grunt 32 | . 2 . . . . . 13 3 . . 14 Brawler 1 | . . . . . . . 1 . . . . Duelist 1 | . . . . . . . 1 . . . . Sentry 5 | . . 1 . . . . . . 3 . 1 Hunter 2 | . . . . . . . . . . . 2 Programmer 7 | . . . . . . . 3 . . . 4 Behemoth 2 | . . . . . . . 2 . . . . Compactor 5 | . . . . . . . . . . 5 . Executioner 3 | . . . . . . . 3 . . . . Subdweller 3 | . . 3 . . . . . . . . . Guru 1 | . . . 1 . . . . . . . . Thug 1 | . . . . . . . 1 . . . . Butcher 1 | . . . . . . . 1 . . . . Mutant 1 | . . . . . . . 1 . . . . Commander 2 | . . . . . . . 2 . . . . Best Kill Streak 17 | 4 2 1 1 3 . . 17 3 2 3 7 Combat Bots Only 17 | . 2 1 1 1 . . 17 3 1 3 5 Max Kills in Single Turn 7 | 1 1 1 1 2 . . 7 1 1 1 3 Gunslinging . | . . . . . . . . . . . . Exploded 6 | . . . . 1 . . 6 . . . 2 Melee 1 | . . . . . . . . 1 1 . 1 Uniques/NPCs Destroyed . | . . . . . . . . . . . . Combat | -11 -10 -10 -7 -5 -5 -5 -5 -4 -4 -4 -4 -------- Run | Yrd Mat Sub Scr Fac Upp Upp War Pro Fac Was Fac Hostile Shots Fired 788 | . 18 16 33 93 6 . 65 23 19 . 515 Missed 252 | . 6 2 9 37 2 . 16 8 5 . 167 Hits 536 | . 12 14 24 56 4 . 49 15 14 . 348 Melee 10 | . . . 5 . . . . . . . 5 Projectile 526 | . 12 14 19 56 4 . 49 15 14 . 343 AOE 2 | . . . . 1 . . 1 . . . . Critical Strikes 23 | . . . 1 3 1 . 1 . . . 17 Part Disruptions 3 | . . . . . . . 1 . . . 2 Damage Taken 10085 | . 170 284 335 964 51 . 880 298 377 38 6688 Core 1602 | . 21 49 74 122 . . 99 62 14 38 1123 Absorbed by Shields 442 | . . . . . . . 442 . . . . Ignored by Resistances 10 | . . . . . . . . . . . 10 Regen/Repaired (Parts) 255 | . . . . . . . 16 . 106 . 133 Core Remaining (%) 71 | 100 . . 42 . . . . 71 . . . Volleys Fired 246 | 34 34 16 6 1 . . 20 . 5 18 112 Largest 3 | 2 2 2 2 1 . . 3 . 1 2 3 Hottest 200 | 70 90 100 60 33 . . 200 . 60 160 200 Shots Fired 448 | 68 68 28 12 1 . . 32 . 5 35 199 Gun 322 | 68 68 16 12 . . . 9 . 1 17 131 Cannon 97 | . . 12 . . . . 3 . . 18 64 Launcher 1 | . . . . 1 . . . . . . . Special 28 | . . . . . . . 20 . 4 . 4 Kinetic 233 | 34 32 11 12 . . . . . . . 144 Thermal 97 | 34 34 16 . . . . . . . . 13 Explosive 21 | . . . . 1 . . 20 . . . . Electromagnetic 3 | . 2 1 . . . . . . . . . Entropic 86 | . . . . . . . 12 . 1 35 38 Robot Hit Streak 12 | 7 7 7 12 . . . 5 . 4 7 9 Robot Miss Streak 7 | 4 4 1 1 2 . . 4 . 1 4 7 Penetration Max 1 | . . . . . . . . . . . 1 Secondary Targets 2 | . . . 1 . . . 1 . . . . Max Gunslinging Chain 1 | . . . 1 . . . 1 . . . . Shots Hit Robots 329 | 43 38 17 10 2 . . 17 14 19 30 139 Core Hits 207 | 11 11 6 1 4 . . 67 6 9 11 81 Critical Kills 1 | . . . . . . . . . . . 1 Critical Parts Destroyed 4 | . . . . . . . 1 . . 1 2 Critical Strikes 37 | 3 2 . . . . . 2 4 2 3 21 Burn 5 | 3 2 . . . . . . . . . . Meltdown 1 | . . . . . . . . . . . 1 Destroy 2 | . . . . . . . . . . . 2 Sever 11 | . . . . . . . 1 4 2 . 4 Detonate 2 | . . . . . . . 1 . . 1 . Sunder 16 | . . . . . . . . . . 2 14 Melee Attacks 93 | . . . . 8 . . . 18 23 . 44 Impact . | . . . . . . . . . . . . Slashing 84 | . . . . . . . . 18 23 . 43 Piercing 9 | . . . . 8 . . . . . . 1 Sneak Attacks 8 | . . . . 2 . . . . 6 . . Combat Hostiles 1 | . . . . . . . . . 1 . . Follow-up Attacks 13 | . . . . . . . . 6 5 . 2 Damage Inflicted 20332 | 413 458 280 164 150 . . 8375 570 1147 2380 6395 Guns 4136 | 413 425 83 164 . . . 457 . 56 969 1569 Cannons 4442 | . . 197 . . . . 80 . . 1351 2814 Explosions 8165 | . 33 . . 57 . . 7294 . . 60 721 Melee 3045 | . . . . 93 . . . 570 1091 . 1291 Ramming . | . . . . . . . . . . . . Kinetic 2244 | 203 172 48 164 . . . . . . . 1657 Thermal 1518 | 210 257 221 . . . . 270 . . 60 500 Explosive 7444 | . . . . 57 . . 7024 . . . 363 Electromagnetic 40 | . 29 11 . . . . . . . . . Impact . | . . . . . . . . . . . . Slashing 3496 | . . . . . . . 544 570 1091 . 1291 Piercing 93 | . . . . 93 . . . . . . . Entropic 5497 | . . . . . . . 537 . 56 2320 2584 Highest Corruption 31 | . . . . 2 2 2 2 . 1 18 31 Average Corruption 16 | . . . . 1 2 2 2 . 1 10 22 Corruption Purged . | . . . . . . . . . . . . Corruption Blocked . | . . . . . . . . . . . . Effects 93 | . . . . . 2 3 . . 1 6 81 Message Errors 17 | . . . . . 1 . . . . . 16 Matter Fused 22 | . . . . . . 1 . . . 4 17 Heat Flow Errors 12 | . . . . . . . . . . 1 11 Energy Discharges 9 | . . . . . . 1 . . 1 . 7 Parts Rejected 2 | . . . . . . . . . . . 2 Data Loss (minor) 9 | . . . . . 1 . . . . . 8 Data Loss (major) 3 | . . . . . . . . . . . 3 Misfires 4 | . . . . . . . . . . . 4 Alerts 2 | . . . . . . 1 . . . . 1 Misdirections 5 | . . . . . . . . . . . 5 Weapon Failures 8 | . . . . . . . . . . 1 7 Overload Shots . | . . . . . . . . . . . . Overflow Damage 604 | . . . . 5 . . 146 . 122 . 331 Projectiles 265 | . . . . . . . 18 . . . 247 Explosions 208 | . . . . . . . 128 . . . 80 Melee 131 | . . . . 5 . . . . 122 . 4 Knockbacks . | . . . . . . . . . . . . Impact . | . . . . . . . . . . . . Kinetic . | . . . . . . . . . . . . Secondary . | . . . . . . . . . . . . Self-Inflicted Damage 414 | . 39 . . . . . . . . 38 337 Shots 6 | . 1 . . . . . . . . 1 4 Rammed . | . . . . . . . . . . . . Targets Rammed 1 | . . . . . . . . . . . 1 Kicked 1 | . . . . . . . . . . . 1 Crushed . | . . . . . . . . . . . . Highest Temperature 439 | 170 214 44 30 . . . 352 7 22 292 439 Average Temperature 93 | 67 66 15 6 . . . 155 3 10 147 110 Received Heat Transfer 1654 | . 63 45 181 9 . . 185 57 72 . 1042 Effects 4 | . . . . . . . . . . 2 2 Shutdowns 2 | . . . . . . . . . . . 2 Energy Bleed 1 | . . . . . . . . . . 1 . Interference 1 | . . . . . . . . . . 1 . Siege Activations . | . . . . . . . . . . . . Martial Activations . | . . . . . . . . . . . . Shielding Activations . | . . . . . . . . . . . . Robots Disrupted . | . . . . . . . . . . . . Combat Hostiles . | . . . . . . . . . . . . Robots Corrupted . | . . . . . . . . . . . . Combat Hostiles . | . . . . . . . . . . . . Parts Fried . | . . . . . . . . . . . . Impact Corruptions . | . . . . . . . . . . . . Robots Melted 1 | . . . . . . . . . . . 1 Combat Hostiles 1 | . . . . . . . . . . . 1 Parts Melted 7 | 4 1 . . . . . 1 . . . 1 Heat Transferred 2648 | 851 864 333 . . . . 150 . . 50 400 Parts Sabotaged . | . . . . . . . . . . . . Parts Stolen . | . . . . . . . . . . . . Parts Stripped . | . . . . . . . . . . . . Power Chain Reactions 1 | . 1 . . . . . . . . . . Alert | -11 -10 -10 -7 -5 -5 -5 -5 -4 -4 -4 -4 ------- Run | Yrd Mat Sub Scr Fac Upp Upp War Pro Fac Was Fac Maximum Alert Level 3 | . . . . . . . . . . . 3 Low Security (%) 67 | 100 100 . . 100 . . . . 100 100 32 Level 1 26 | . . . . . . . . . . . 55 Level 2 5 | . . . . . . . . . . . 11 Level 3 . | . . . . . . . . . . . . Level 4 . | . . . . . . . . . . . . Level 5 . | . . . . . . . . . . . . High Security . | . . . . . . . . . . . . Max Security . | . . . . . . . . . . . . Peak Influence 706 | 10 30 . . 188 . . . . 65 22 706 Initial 9 | . . . . . . . . . . 9 1 Average 133 | 2 11 . . 48 . . . . 17 6 255 Influence Increases 3132 | 35 184 20 . 260 . . 788 70 175 46 1554 Destroy 0b10 Robot/C 1540 | . 60 20 . 20 . . 720 60 60 . 600 Destroy 0b10 Robot/NC 165 | 35 15 . . 10 . . . . 15 . 90 Destroy Leader 158 | . 20 . . . . . . 10 30 . 98 Allied During Kill 68 | . . . . . . . 68 . . . . Successful Hack 45 | . 8 . . . . . . . 6 . 31 Select Force Hacks 60 | . 30 . . 30 . . . . . . . Disable Machine 165 | . . . . 15 . . . . . . 150 Anti-Garrison Action 150 | . . . . . . . . . . . 150 Destroy Structure 316 | . 6 . . 20 . . . . 4 46 240 Partial Spotted 75 | . . . . 15 . . . . 15 . 45 Lose Combat Pursuer 390 | . 45 . . 150 . . . . 45 . 150 Influence Decreases 2460 | 35 160 44 . 82 178 . 338 520 147 72 884 Entered New Map 549 | . . 12 . . 67 . . 450 . 19 1 Time Decay 1335 | 35 150 30 . 62 101 . 248 70 137 53 449 Lost Part 492 | . 10 2 . 20 10 . 10 . 10 . 430 Lost Ally 84 | . . . . . . . 80 . . . 4 Squads Dispatched 20 | . 3 . . 3 . . . . 2 . 12 Investigation 6 | . 2 . . 1 . . . . . . 3 Extermination 4 | . . . . . . . . . 1 . 3 Reinforcement 5 | . 1 . . 2 . . . . . . 2 Assault 4 | . . . . . . . . . . . 4 Garrison 1 | . . . . . . . . . 1 . . Intercept . | . . . . . . . . . . . . Searches Triggered . | . . . . . . . . . . . . Construction Impeded 1 | . . . . . . . . . . . 1 Haulers Reinforced 1 | . . . . . . . . . . . 1 Active Scanning Responses . | . . . . . . . . . . . . Cargo Convoy Interrupts 1 | . . . . . . . . . . . 1 Stealth | -11 -10 -10 -7 -5 -5 -5 -5 -4 -4 -4 -4 --------- Run | Yrd Mat Sub Scr Fac Upp Upp War Pro Fac Was Fac Distress Signals 7 | . 3 . . . . . . . . . 4 Communications Jammed . | . . . . . . . . . . . . Distress Signals . | . . . . . . . . . . . . Times Spotted 206 | . 18 5 11 21 1 . 61 3 7 6 73 Peak Tracking Total 17 | . 4 2 5 11 1 . 17 3 4 2 15 Tactical Retreats 12 | . 2 . . 4 . . . . 1 . 5 Traps | -11 -10 -10 -7 -5 -5 -5 -5 -4 -4 -4 -4 ------- Run | Yrd Mat Sub Scr Fac Upp Upp War Pro Fac Was Fac Traps Triggered 2 | . . . . . . . 1 . 1 . . Indirectly . | . . . . . . . . . . . . Trap Hack Attempts . | . . . . . . . . . . . . Triggered . | . . . . . . . . . . . . Disarmed . | . . . . . . . . . . . . Reprogrammed 4 | . . . . . . . . . 4 . . Reused . | . . . . . . . . . . . . Traps Extracted . | . . . . . . . . . . . . Installed . | . . . . . . . . . . . . Triggered . | . . . . . . . . . . . . Most Traps Carried 1 | . . . 1 1 1 1 1 . . . . Machines | -11 -10 -10 -7 -5 -5 -5 -5 -4 -4 -4 -4 ---------- Run | Yrd Mat Sub Scr Fac Upp Upp War Pro Fac Was Fac Machines Disabled 19 | . . 1 1 1 . . 4 1 . . 11 Max in Single Turn 2 | . . 1 1 1 . . 2 1 . . 2 Garrison Access 3 | . . . . 1 . . . . 1 . 1 Machines Repaired . | . . . . . . . . . . . . Machines Dismantled . | . . . . . . . . . . . . Machines Sabotaged . | . . . . . . . . . . . . Overloaded Fab Kills . | . . . . . . . . . . . . Hacking | -11 -10 -10 -7 -5 -5 -5 -5 -4 -4 -4 -4 --------- Run | Yrd Mat Sub Scr Fac Upp Upp War Pro Fac Was Fac Machines Accessed 49 | . 6 2 9 4 1 . 11 . 7 . 9 Terminals 11 | . 5 . . . . . . . 3 . 3 Fabricators 2 | . . . . 1 . . . . . . 1 Repair Stations 3 | . . . . 1 . . . . 1 . 1 Recycling Units 5 | . 1 . . 1 . . . . 1 . 2 Scanalyzers 2 | . . . . . . . . . 1 . 1 Garrison Access 3 | . . . . 1 . . . . 1 . 1 Total Hacks 201 | . 20 14 58 10 1 . 27 . 36 . 35 Successful 155 | . 9 14 58 5 1 . 27 . 24 . 17 Failed 46 | . 11 . . 5 . . . . 12 . 18 Catastrophic 9 | . . . . . . . . . 3 . 6 Database Lockouts . | . . . . . . . . . . . . Manual 58 | . 19 . . 2 . . . 1 15 . 21 Terminals 48 | . 18 . . . . . . . 13 . 17 Fabricators 6 | . . . . 3 . . . . . . 3 Repair Stations 11 | . . . . 3 . . . . 6 . 2 Recycling Units 14 | . 2 . . 2 . . . . 3 . 7 Scanalyzers 10 | . . . . . . . . . 8 . 2 Garrison Access 12 | . . . . 2 . . . . 6 . 4 Terminal Hacks 105 | . 3 14 58 . 1 . 27 . 2 . . Record 82 | . . 13 50 . . . 19 . . . . Robot Analysis 10 | . 3 . 7 . . . . . . . . Prototype ID Bank 7 | . . . . . . . 7 . . . . Open Door 3 | . . . . . 1 . 1 . 1 . . Reprogram Traps 1 | . . . . . . . . . 1 . . Proto ID Catalog 2 | . . 1 1 . . . . . . . . Fabricator Hacks 4 | . . . . 1 . . . . . . 3 Network Status 2 | . . . . 1 . . . . . . 1 Load Schematic 1 | . . . . . . . . . . . 1 Build 1 | . . . . . . . . . . . 1 Repair Station Hacks 8 | . . . . 1 . . . . 5 . 2 Scan Component 3 | . . . . . . . . . 2 . 1 Repair 3 | . . . . . . . . . 2 . 1 Refit 2 | . . . . 1 . . . . 1 . . Recycling Unit Hacks 6 | . 1 . . . . . . . 2 . 3 Report Inventory 3 | . 1 . . . . . . . 1 . 1 Retrieve Matter 1 | . . . . . . . . . 1 . . Retrieve Components 2 | . . . . . . . . . . . 2 Scanalyzer 10 | . . . . . . . . . 8 . 2 Insert Component 5 | . . . . . . . . . 4 . 1 Analyze 5 | . . . . . . . . . 4 . 1 Garrison Access Hacks 2 | . . . . 1 . . . . 1 . . Seal Access 2 | . . . . 1 . . . . 1 . . Unauthorized Hacks 19 | . 5 . . 1 . . . . 6 . 7 Terminals 9 | . 4 . . . . . . . 2 . 3 Botnet 9 | . 4 . . . . . . . 2 . 3 Fabricators . | . . . . . . . . . . . . Repair Stations . | . . . . . . . . . . . . Recycling Units 6 | . 1 . . 1 . . . . 1 . 3 Monitor 1 | . . . . . . . . . . . 1 Reject 1 | . . . . . . . . . . . 1 Recyclers 2 | . . . . . . . . . 1 . 1 Tunnel 2 | . 1 . . 1 . . . . . . . Scanalyzers . | . . . . . . . . . . . . Garrison Access 4 | . . . . . . . . . 3 . 1 Broadcast 1 | . . . . . . . . . 1 . . Intercept 2 | . . . . . . . . . 1 . 1 Watchers 1 | . . . . . . . . . 1 . . Data Cores Recovered 2 | . 1 . . . . . . . 1 . . Used 2 | . 1 . . . . . . . 1 . . Hacking Detections 20 | . 5 . . 2 . . . . 6 . 7 Full Trace Events 6 | . 3 . . . . . . . . . 3 Feedback Events . | . . . . . . . . . . . . Feedback Blocked . | . . . . . . . . . . . . Robot Schematics Acquired . | . . . . . . . . . . . . Robots Built . | . . . . . . . . . . . . Authchips . | . . . . . . . . . . . . Time . | . . . . . . . . . . . . Total Robot Build Rating . | . . . . . . . . . . . . Part Schematics Acquired 3 | . . . . . . . . . 2 . 1 Parts Built 1 | . . . . . . . . . . . 1 Authchips . | . . . . . . . . . . . . Time 102 | . . . . . . . . . . . 102 Total Part Build Rating 8 | . . . . . . . . . . . 8 Parts Repaired 3 | . . . . . . . . . 2 . 1 Time 232 | . . . . . . . . . 124 . 108 Parts Recycled . | . . . . . . . . . . . . Recycled Matter . | . . . . . . . . . . . . Retrieved Matter . | . . . . . . . . . . . . Retrieved Components 5 | . . . . . . . . . . . 5 Parts Scanalyzed 3 | . . . . . . . . . 2 . 1 Part Schematics Acquired 3 | . . . . . . . . . 2 . 1 Parts Damaged . | . . . . . . . . . . . . Bothacking | -11 -10 -10 -7 -5 -5 -5 -5 -4 -4 -4 -4 ------------ Run | Yrd Mat Sub Scr Fac Upp Upp War Pro Fac Was Fac Used RIF Installer . | . . . . . . . . . . . . Robots Hacked . | . . . . . . . . . . . . Non-combat . | . . . . . . . . . . . . Combat . | . . . . . . . . . . . . Robot Hacks Applied . | . . . . . . . . . . . . Relay Couplers Released 1 | . . . . . . . . . . . 1 Machine Destruction 1 | . . . . . . . . . . . 1 Fabnet Peak Effective % . | . . . . . . . . . . . . Robots Rewired 5 | . . . . . . . 5 . . . . Allies Hacked . | . . . . . . . . . . . . Hacks Repelled . | . . . . . . . . . . . . Allies | -11 -10 -10 -7 -5 -5 -5 -5 -4 -4 -4 -4 -------- Run | Yrd Mat Sub Scr Fac Upp Upp War Pro Fac Was Fac Total Allies 6 | . . . . . . . 5 . . 1 . Largest Group 5 | . . . . . . . 5 . . 1 1 Highest-Rated Group 238 | . . . . . . . 238 . . 46 46 Highest-Rated Ally 64 | . . . . . . . 64 . . 46 46 Total Orders 2 | . . . . . . . 2 . . . . STAY 1 | . . . . . . . 1 . . . . FOLLOW 1 | . . . . . . . 1 . . . . Ally Attacks 30 | . . . . . . . 14 . . 15 1 Total Damage 1172 | . . . . . . . 712 . . 436 24 Kills 5 | . . . . . . . 4 . . 1 . Allies Corrupted 1 | . . . . . . . 1 . . . . Allies Melted 6 | . . . 4 . . . 2 . . . . Intel | -11 -10 -10 -7 -5 -5 -5 -5 -4 -4 -4 -4 ------- Run | Yrd Mat Sub Scr Fac Upp Upp War Pro Fac Was Fac Active Infowar (turns) 5175 | 120 493 554 574 167 225 202 880 463 533 43 921 Optics 609 | . . 73 530 . . . 6 . . . . Sensors 3425 | . . . . 167 225 202 880 463 533 43 912 Terrain 1183 | 120 493 481 . . . . . . . . 89 Structural 44 | . . . 44 . . . . . . . . Robot Analysis Total 10 | . 3 . 7 . . . . . . . . Derelict Logs Recovered 11 | . . 2 5 . 1 2 . 1 . . . Drone Launches . | . . . . . . . . . . . . Drone Recoveries . | . . . . . . . . . . . . Exploration | -11 -10 -10 -7 -5 -5 -5 -5 -4 -4 -4 -4 ------------- Run | Yrd Mat Sub Scr Fac Upp Upp War Pro Fac Was Fac Turns Passed 7314 | 189 539 675 1101 265 225 202 1421 465 533 137 1562 Spaces Moved 6898 | 96 449 591 1003 386 476 460 1279 488 356 83 1231 Core 4 | 2 . . . . . . . . . . 2 Treads . | . . . . . . . . . . . . Legs 318 | . . . . . . . . . . . 318 Wheels 2137 | 94 449 591 1003 . . . . . . . . Hover 740 | . . . . . . . . . . . 740 Flight 3699 | . . . . 386 476 460 1279 488 356 83 171 Fastest Speed 27 | 50 80 95 105 34 34 34 44 87 87 87 27 Average Speed 80 | 82 94 99 105 40 34 42 85 87 87 87 79 Slowest Speed 1250 | 90 110 110 110 80 34 44 800 87 87 87 1250 Overloaded Moves . | . . . . . . . . . . . . Propulsion Burnouts . | . . . . . . . . . . . . Robots Hopped 5 | . . . . 2 . . 3 . . . . Potential Cave-ins . | . . . . . . . . . . . . Cave-ins Triggered . | . . . . . . . . . . . . Exploration Rate (%) 47 | 4 58 31 84 10 58 63 88 59 14 82 19 Regions Visited 11 Branch Regions 6 Pre-discovered Areas 5 | . 1 2 1 1 . . . . . . . Known Exits Taken 6 | . . . 1 1 1 1 1 1 . . . Unknown Exits Taken 3 | 1 1 1 . . . . . . . . . Scrap Searched 9 | . . 3 1 . 2 3 . . . . . Spaces Dug 9 | . . . . 4 . . . . 1 . 4 Terrain Destroyed 394 | . 6 . . 9 . . 213 . 2 26 138 Melee 9 | . . . . 4 . . . . 1 . 4 Projectile 64 | . . . . . . . 10 . 1 15 38 AOE 321 | . 6 . . 5 . . 203 . . 11 96 Terrain Rammed . | . . . . . . . . . . . . Walls Destroyed . | . . . . . . . . . . . . Machines Disabled . | . . . . . . . . . . . . Actions | -11 -10 -10 -7 -5 -5 -5 -5 -4 -4 -4 -4 --------- Run | Yrd Mat Sub Scr Fac Upp Upp War Pro Fac Was Fac Total 8152 | 139 499 658 1042 481 541 464 1579 510 545 110 1584 Wait 493 | . 1 12 5 51 51 . 140 6 144 8 75 Move 6880 | 95 448 590 1002 382 475 459 1273 487 356 82 1231 Hop 3 | . . . . 1 . . 2 . . . . Pick Up 90 | 1 10 13 10 8 5 1 27 1 4 . 10 Fast Attach 94 | 7 2 2 2 10 . 2 23 . 6 . 40 Attach 61 | . 1 3 . 7 3 1 14 1 4 . 27 Detach 47 | . 2 . 1 6 2 . 10 1 3 . 22 Swap 41 | 2 1 6 4 . . . 15 2 1 2 8 Drop 106 | . . 16 12 7 5 1 43 1 5 . 16 Fire 246 | 34 34 16 6 1 . . 20 . 5 18 112 Melee 78 | . . . . 8 . . . 11 17 . 42 Ram . | . . . . . . . . . . . . Kick 1 | . . . . . . . . . . . 1 Crush . | . . . . . . . . . . . . Escape Stasis . | . . . . . . . . . . . . Rewire 12 | . . . . . . . 12 . . . . Trap . | . . . . . . . . . . . . Miscellaneous . | . . . . . . . . . . . . Route ------- -11/Scrapyard -10/Materials (discovered 3 exits: [*Mat x2] / *Sub) -10/Subcaves (discovered 2 exits: [*Mat] / *Scr) -7/Scraptown (discovered 2 exits: *Fac x2) -5/Factory (discovered 2 exits: Fac / *Upp) -5/Upper Caves -5/Upper Caves -5/Warlord -4/Proximity Caves -4/Factory -4/Waste -4/Factory History --------- Turn | Location | Event 12 | -11/Scrapyard | Discovered new exit (range 16) 190 | -11/Scrapyard | Entered Materials 191 | -10/Materials | Met a group of wandering Federalists 278 | -10/Materials | Lost 3 allies 289 | -10/Materials | Discovered new exit (range 5) 304 | -10/Materials | Build established: Mutant 351 | -10/Materials | Discovered new exit (range 3) 659 | -10/Materials | Discovered new exit (range 16) 729 | -10/Materials | Entered Subcaves 730 | -10/Subcaves | Continued accompanying wandering Federalists (2) 730 | -10/Subcaves | Approached by a straggling Scientist 847 | -10/Subcaves | Visited Clippyterm 850 | -10/Subcaves | Learned Research security intel 850 | -10/Subcaves | Learned Factory fabricator intel 865 | -10/Subcaves | Shifting Twisted Machinery released Sub. Laser 869 | -10/Subcaves | Shifting Twisted Machinery released Mak. Light Armor Plating 884 | -10/Subcaves | Learned location of Zion (-7) 895 | -10/Subcaves | Scientist uncovered a shortcut to Scraptown 942 | -10/Subcaves | Discovered new exit (range 7) 1147 | -10/Subcaves | Shifting Twisted Machinery released Piercing Trap 1169 | -10/Subcaves | Visited 4L-MR0's lab 1187 | -10/Subcaves | Found Flightbrick 1234 | -10/Subcaves | Met a Zionite searching for "candidates" 1260 | -10/Subcaves | Shifting Twisted Machinery released Sub. Machine Gun 1404 | -10/Subcaves | Entered Scraptown 1490 | -7/Scraptown | Scanned Subdweller tech in exchange for log data 1492 | -7/Scraptown | Learned Factory non-interactive machine intel 1493 | -7/Scraptown | Learned location of Quarantine (-2) 1495 | -7/Scraptown | Learned Research stockpile data 1496 | -7/Scraptown | Learned 12 Factory zone layouts 1497 | -7/Scraptown | Learned Research interactive machine intel 1602 | -7/Scraptown | Build established: Scavenger-Mutant 1743 | -7/Scraptown | Visited UFD Registry 1743 | -7/Scraptown | Registered with UFD as "Scrapcircuit" 1751 | -7/Scraptown | Visited The Evicted 1766 | -7/Scraptown | Visited Cyclists 1773 | -7/Scraptown | Entered Cyclist Reading Room 1790 | -7/Scraptown | Visited Supply Room 1839 | -7/Scraptown | Visited Cave Peace 1876 | -7/Scraptown | Visited Spacefarers 1894 | -7/Scraptown | Visited Comm Corps 2000 | -7/Scraptown | Visited Scrap Suit Storage 2041 | -7/Scraptown | Visited Science Guys 2105 | -7/Scraptown | Build established: Mutant 2121 | -7/Scraptown | Delivered Scrap Shield to a Scientist 2242 | -7/Scraptown | Met Optimus 2242 | -7/Scraptown | Accepted into 0bPrime 2292 | -7/Scraptown | Visited Research Penetration Think Tank 2316 | -7/Scraptown | Visited Analyses Database 2338 | -7/Scraptown | Visited Junk Repository 2361 | -7/Scraptown | Civil war broke out across Scraptown 2400 | -7/Scraptown | Visited Abandonware Association 2410 | -7/Scraptown | Learned abandonware demo "KABOOM.EXE" 2410 | -7/Scraptown | Learned abandonware demo "REBOOT5.EXE" 2435 | -7/Scraptown | Identified exit to Factory 2443 | -7/Scraptown | Lost 5 allies 2476 | -7/Scraptown | Found Scrap Suit 2479 | -7/Scraptown | Found Scrap Suit 2496 | -7/Scraptown | Optimus destroyed in the chaos of civil war 2500 | -7/Scraptown | Core integrity fell below 50% 2505 | -7/Scraptown | Entered Factory 2505 | -5/Factory | Evolved 10 slots: Power x1, Propulsion x3, Utility x4, Weapon x2 2506 | -5/Factory | Identified exit to Upper Caves 2506 | -5/Factory | Identified exit to Factory 2506 | -5/Factory | Attached Flightbrick, gained temporary slots: Utility x3 2507 | -5/Factory | Loaded intel: 233 non-interactive machine locations 2508 | -5/Factory | Loaded intel: 6 fabricator locations 2535 | -5/Factory | Lost 3 parts (1n2w) 2770 | -5/Factory | Entered Upper Caves 2772 | -5/Upper Caves | UFD Scientist delivered a prototype 2774 | -5/Upper Caves | Found Prototype Protection 2815 | -5/Upper Caves | Build established: Hacker-Mutant 2857 | -5/Upper Caves | Learned Factory terminal intel 2861 | -5/Upper Caves | Spotted B-75 Beast 2883 | -5/Upper Caves | Encountered a Warlord checkpoint 2992 | -5/Upper Caves | Discovered new exit (range 8) 2994 | -5/Upper Caves | Identified exit to Upper Caves 2995 | -5/Upper Caves | Entered another Upper Caves area 3013 | -5/Upper Caves | Learned 4 Factory zone layouts 3156 | -5/Upper Caves | Discovered new exit (range 8) 3163 | -5/Upper Caves | Identified exit to Warlord 3197 | -5/Upper Caves | Entered Warlord 3224 | -5/Warlord | System corruption cleaned by Quarantine Array 3503 | -5/Warlord | Rebuked by Warlord 3528 | -5/Warlord | Warlord's base attacked by MAIN.C 3557 | -5/Warlord | Found Prototype Energy Cannon 3557 | -5/Warlord | Identified Vortex Driver 3561 | -5/Warlord | Found Prototype Energy Gun 3561 | -5/Warlord | Identified Vortex Shotgun 3566 | -5/Warlord | Found Vortex Driver 3570 | -5/Warlord | Found Vortex Driver 3572 | -5/Warlord | Found Vortex Driver 3582 | -5/Warlord | Found Vortex Shotgun 3751 | -5/Warlord | Found Prototype Special Weapon 3751 | -5/Warlord | Identified RU-N14's Throwing Claymores v3 3754 | -5/Warlord | Found RU-N14's Throwing Claymores v3 3801 | -5/Warlord | Spotted B-86 Titan 3809 | -5/Warlord | Destroyed B-75 Beast 3830 | -5/Warlord | Found RU-N14's Throwing Claymores v3 3833 | -5/Warlord | Found RU-N14's Throwing Claymores v3 3835 | -5/Warlord | Found RU-N14's Throwing Claymores v3 3874 | -5/Warlord | Found RU-N14's Throwing Claymores v3 3878 | -5/Warlord | Warlord forces counterattacked 3890 | -5/Warlord | Spotted Striker 3890 | -5/Warlord | P-80 Master assimilated allied VQ-MWB(g) 3890 | -5/Warlord | Allies destroyed VQ-MWB(g) 3960 | -5/Warlord | Lost 3 allies 3980 | -5/Warlord | Spotted Executioner 3985 | -5/Warlord | Found Prototype Processor 3985 | -5/Warlord | Identified Exp. Core Analyzer 4028 | -5/Warlord | Spotted Executioner 4033 | -5/Warlord | Spotted Executioner 4056 | -5/Warlord | Found Exp. Core Analyzer 4063 | -5/Warlord | Destroyed 17 combat bots 4070 | -5/Warlord | Lost 7 allies 4128 | -5/Warlord | Spotted Executioner 4128 | -5/Warlord | Spotted B-75 Beast 4128 | -5/Warlord | Spotted Executioner 4128 | -5/Warlord | Spotted B-86 Titan 4128 | -5/Warlord | P-70 Sage assimilated allied WO-NS8(g) 4128 | -5/Warlord | Destroyed Executioner 4128 | -5/Warlord | Spotted WO-NS8(g) 4130 | -5/Warlord | Destroyed Executioner 4130 | -5/Warlord | Destroyed WO-NS8(g) 4130 | -5/Warlord | Destroyed SN-4KI(g) 4139 | -5/Warlord | Destroyed B-86 Titan 4160 | -5/Warlord | Destroyed 7 combat bots 4169 | -5/Warlord | Lost 4 allies 4203 | -5/Warlord | Warlord base infiltrated, sounded retreat 4368 | -5/Warlord | Found Prototype Hackware 4372 | -5/Warlord | Found Prototype Processor 4379 | -5/Warlord | Found Prototype Processor 4384 | -5/Warlord | Found Prototype Reactor 4384 | -5/Warlord | Identified Vortex Chain Reactor 4592 | -5/Warlord | Spotted Executioner 4601 | -5/Warlord | Destroyed Executioner 4606 | -5/Warlord | Spotted Striker 4607 | -5/Warlord | Discovered new exit (range 15) 4617 | -5/Warlord | Identified exit to Proximity Caves 4618 | -5/Warlord | Entered Proximity Caves 4811 | -4/Proximity Caves | Acquired the password to a Derelict Tinkerer's latest research 4814 | -4/Proximity Caves | Identified Exp. Targeting Computer 4819 | -4/Proximity Caves | Found Prototype Special Weapon 4967 | -4/Proximity Caves | Discovered exit to Factory (range 10) 5083 | -4/Proximity Caves | Entered Factory 5083 | -4/Factory | Evolved 2 slots: Propulsion x1, Utility x1 5085 | -4/Factory | Loaded intel: 28 terminal locations 5190 | -4/Factory | Repaired Mic. Antimatter Reactor 5247 | -4/Factory | Repaired Phasing Sabre 5280 | -4/Factory | Identified Molecular Deconstructor 5407 | -4/Factory | Discovered new exit (range 15) 5462 | -4/Factory | Identified Ghost Barrier 5464 | -4/Factory | Identified Exp. Target Analyzer 5571 | -4/Factory | Garrison activated, responded to threat 5616 | -4/Factory | Sucked down chute 5616 | -4/Factory | Entered Waste 5617 | -4/Waste | Met a frightened Derelict 5623 | -4/Waste | Spotted C-40 Crusher 5631 | -4/Waste | EMP discharged 5631 | -4/Waste | System corruption reached 10% 5633 | -4/Waste | Allies destroyed C-40 Crusher 5656 | -4/Waste | Spotted C-40 Crusher 5657 | -4/Waste | Spotted C-40 Crusher 5662 | -4/Waste | Destroyed C-40 Crusher 5669 | -4/Waste | Destroyed C-40 Crusher 5682 | -4/Waste | Spotted C-40 Crusher 5683 | -4/Waste | Spotted C-40 Crusher 5690 | -4/Waste | Destroyed C-40 Crusher 5704 | -4/Waste | Spotted C-40 Crusher 5708 | -4/Waste | Destroyed C-40 Crusher 5716 | -4/Waste | Destroyed C-40 Crusher 5731 | -4/Waste | EMP discharged 5739 | -4/Waste | Discovered new exit (range 10) 5746 | -4/Waste | Identified exit to Factory 5753 | -4/Waste | Entered Factory 5753 | -4/Factory | Accompanied by 1 ally 5765 | -4/Factory | Build established: Wizard-Mutant 5892 | -4/Factory | Lost 4 parts (1p1n2w) 6101 | -4/Factory | Fabricated Cld. Antigrav System? 6143 | -4/Factory | Lost 9 parts (1p5n1u2w) 6149 | -4/Factory | Build established: Hacker-Mutant 6529 | -4/Factory | Build established: Hacker-Skirmisher 6662 | -4/Factory | Repaired Cld. Antigrav System? 6687 | -4/Factory | Core integrity fell below 50% 6731 | -4/Factory | Identified Enh. Scrap Shield 6781 | -4/Factory | Core integrity fell below 20% 6785 | -4/Factory | System corruption reached 30% 6793 | -4/Factory | Lost 22 parts (1p6n7u8w) 6860 | -4/Factory | Lost 4 parts (1p1n1u1w) 7222 | -4/Factory | Cargo convoy interrupted 7253 | -4/Factory | First assault squad dispatched 7284 | -4/Factory | Spotted Striker 7284 | -4/Factory | Spotted Striker 7315 | -4/Factory | Destroyed by Striker with Plasma Lance Last Messages --------------- 07298_ Knocked back. 07300_ Dropped Focal Shield. 07300_ P-70 Sage resets Striker, system corruption cleaned. 07301_ Acquired Focal Shield. 07301_ Adv. Sensor Array destroyed. 07301_ C-30 ARC bursts open, deploying its payload. 07301_ G-73 Enforcer unfolds itself. 07301_ L-61 Swordsman unfolds itself. 07301_ B-60 Warrior unfolds itself. 07304_ U-05 Engineer builds a Wall. 07306_ P-70 Sage resets Striker, system corruption cleaned. 07307_ System corrupted: Matter fused (-10). 07307_ P-70 Sage resets U-05 Engineer, system corruption cleaned. 07308_ U-05 Engineer builds a Wall. 07309_ Acquired 51 matter. 07311_ Backup Propulsion I destroyed. 07311_ Lgt. Antimatter Reactor destroyed. Map ----- +----------------------------------------------------+ | # "%" ?? | | + % " ?? | | # "" ??? | | + %* "% " ??? | | ?###########+#############/###################???? | | ??????# "" ## #???????????????? | | ??????# """ ""S ##""" """ #???????????????? | | ??????# """ "" ##"Y % """ #???????????????? | | ??????# """ ##"" = """ #???????????????? | | ??????# ## %%! !#???????????????? | | ??????############################???????????????? | | ???????????????# ########?##??????????? | | ???????????????# # ??????????? | | ???????????????# # ?????????? | | ???????????????# # """ """ #???????? | | """""??????????# # """ """ #???????? | | ??????#?# # """ """ #???????? | | """""""""?????## # " " #???????? | | ?????#" # ! " " #???????? | | """""""""?????## %# #???????? | | ???###### % !# ! #???????? | | """""?????#""""# # ! #???????? | | ? ?????#""F"# #[%!%* #???????? | | +##########"" #######+######!!*[*[ #???????? | | %% K#######+#########???????? | | =K@ %[! %![ #"#??????? | | k ! !%!%%= % #????????? | | [ = [! % #????????? | | "" "" "" ############ * # ""?????? | | "" "" "" "" # #??# #!## # ""?????? | | " "" """ """ """ ####??#####? #?? ?????? | | """ """ """ """ #???????????? # ???????? | | "" "" """ """ !! #????????????? ###??????? | | #???????????????????????? | | #???????????????????????? | | % #???????????????????????? | | ######################???????????????????????? | | # ?? ?????????????????????????????????? | | # """"""" ???????????????????????????????????? | | + """""""????????????????????????????????????? | | # """"""?????????????????????????????????????? | | # """"""?????????????????????????????????????? | | # ??????????????????????????????????????? | | # ?????????????????????????????????????? | | #?#########??????????????????????????????????? | | #???????? #??????????????????????????????????? | | ########? #??????????????????????????????????? | | ## ## ## #??????????????????????????????????? | | #""""""""##??????????????????????????????????? | | # ^#??????????????????????????????????? | +----------------------------------------------------+ Best States ------------- Heat Dissipation 81 Energy Generation 55 Energy Capacity 700 Matter Stores 300 Matter Capacity 300 Sight Range 23 Robot Scan Range 16 Terrain Scan Range 16 Terrain Scan Density 10 Power Amplification 40 Additional Mass Support 20 Armor Coverage 800 Resistance: KI 20 Weapon Cycling 20 Evasion (%) 64 Targeting Accuracy 8 Core Analysis 12 Offensive Hacking 34 Defensive Hacking 31 Item Schematics ----------------- Cld. Antigrav System | -4/Factory | Scanalyzed Exp. Target Analyzer | -4/Factory | Scanalyzed Vortex Chain Reactor | -4/Factory | Scanalyzed Robot Schematics ------------------ None Fabricated ------------ Cld. Antigrav System | x1 | -4/Factory Repaired ---------- Mic. Antimatter Reactor | 2% | -4/Factory Phasing Sabre | 41% | -4/Factory Cld. Antigrav System | 11% | -4/Factory Alien Tech Used ----------------- None Achievements -------------- None Challenges ------------ None Game ------ Seed ReactiveServoMonowheel Manual? 0 Play Time 02:03:12 Cumulative 235.3 hours Start 2025.05.25 @ 05:34:06 End 2025.05.25 @ 07:39:19 Sessions 2 Manual Loads 0 Difficulty Rogue Special Mode None Game No. 139 Rogue 139 Adventurer 0 Explorer 0 Win Type - Total 3 Types 1/0/1/1/0/0/0/0/0/0 Lore% 77 Gallery% 64 Achievement% 63 Wizard Run 0 Options --------- Layout 2 ASCII 0 Keyboard 1 Movement Vi Keybinds 0 Fullscreen 1 Font 16/SmallcapsGlow Map View 55x47 Zoom Use 0% Tactical HUD 1 Map Filters NONE Filters NONE Steam 0 RUN: 1296514b-ea32-487f-9ed9-89841556aa89